bitfinex-derivatives/quotes_SOLF0:USTF0_20250624
["timestamp","ask_amount","ask_price","bid_price","bid_amount"]
[1750743701344,37.38,145.07,145.03,6.8904]
[1750743701547,5.70589456,145.06,145.03,6.8904]
[1750743701746,44.2689,145.07,145.04,6.8902]
[1750743702247,6.8889,145.07,145.02,3.41939153]
[1750743702450,6.8889,145.07,145.03,6.8905]
[1750743702848,6.8889,145.07,145.02,3.41939153]
[1750743703650,6.8889,145.07,145.04,6.8901]
[1750743704542,13.41051158,145.11,145.04,3.41939153]
[1750743704746,5.68306907,145.1,145.06,3.41939153]
[1750743705050,13.8792,145.11,145.07,6.8884]
[1750743705252,5.6830481,145.1,145.07,6.8884]
[1750743705447,13.8792,145.11,145.07,6.8884]
[1750743705646,5.68289095,145.1,145.07,6.8884]
[1750743705844,5.68289095,145.09,145.07,6.8884]
[1750743706045,13.8791,145.11,145.07,6.8884]
[1750743706350,5.68287934,145.1,145.07,6.8884]
[1750743706549,13.8791,145.11,145.07,6.8884]
[1750743706750,5.68315439,145.1,145.07,6.8884]
[1750743706952,5.68315439,145.09,145.07,6.8884]
[1750743707154,13.8791,145.11,145.07,6.8884]
[1750743707348,10.66670503,145.1,145.07,6.8884]
[1750743707659,5.68334016,145.09,145.07,6.8884]
[1750743707857,13.8791,145.11,145.07,6.8884]
[1750743708156,10.6929557,145.1,145.07,6.8884]
[1750743708459,5.70988724,145.09,145.07,6.8884]
[1750743708652,13.8791,145.11,145.07,6.8884]
[1750743708854,10.69290839,145.1,145.07,6.8884]
[1750743709157,5.70982646,145.09,145.07,6.8884]
[1750743709351,13.8791,145.11,145.07,6.8884]
[1750743709551,5.6984715,145.1,145.07,6.8884]
[1750743709754,5.6984715,145.09,145.07,6.8884]
[1750743709953,13.8791,145.11,145.07,6.8884]
[1750743710153,5.69847554,145.1,145.07,6.8884]
[1750743710355,5.69847554,145.09,145.07,6.8884]
[1750743710551,13.8791,145.11,145.07,6.8884]
[1750743710858,5.69832398,145.1,145.07,6.8884]
[1750743711054,5.69832398,145.09,145.07,6.8884]
[1750743711358,13.8791,145.11,145.07,6.8884]
[1750743711557,5.69815269,145.1,145.07,6.8884]
[1750743711755,5.69815269,145.09,145.07,6.8884]
[1750743711960,6.992,145.11,145.05,3.41939153]
[1750743712160,5.69815459,145.1,145.05,3.41939153]
[1750743712457,5.69815459,145.09,145.05,3.41939153]
[1750743712660,13.8789,145.11,145.07,6.8885]
[1750743712861,5.69801613,145.1,145.07,6.8885]
[1750743713064,5.69801613,145.09,145.07,6.8885]
[1750743713257,13.8789,145.11,145.07,6.8885]
[1750743713457,5.69805168,145.1,145.07,6.8885]
[1750743713660,5.69805168,145.09,145.07,6.8885]
[1750743713858,13.8789,145.11,145.07,6.8885]
[1750743714058,5.69786524,145.1,145.07,6.8885]
[1750743714258,5.69786524,145.09,145.07,6.8885]
[1750743714463,6.8874,145.1,145.07,6.8885]
[1750743714661,5.69766994,145.09,145.07,6.8885]
[1750743714966,6.8874,145.1,145.07,6.8885]
[1750743715171,5.69769804,145.09,145.07,6.8885]
[1750743715460,5.69769804,145.09,144.98,13.63611428]
[1750743715461,10.66446704,145.08,145.01,3.41939153]
[1750743715656,10.66493291,145.07,145.01,3.41939153]
[1750743715863,5.69783233,145.06,145.01,3.41939153]
[1750743716066,5.69783233,145.05,145.01,3.41939153]
[1750743716362,37.34,145.08,144.99,3.41939153]
[1750743716363,3.41939153,145.07,144.99,3.41939153]
[1750743716565,3.41939153,145.05,144.97,40.75939153]
[1750743716767,49.92067621,145.04,144.97,40.75939153]
[1750743717060,5.69907621,145.03,144.97,40.75939153]
[1750743717256,6.891,145.03,144.99,6.8925]
[1750743718661,5.69615267,145.02,144.97,37.34]
[1750743718858,3.41939153,145.03,144.96,3.41939153]
[1750743719059,5.69662938,145.02,144.96,3.41939153]
[1750743719257,3.41939153,145.03,144.96,3.41939153]
[1750743719563,5.69372991,145.02,144.96,3.41939153]
[1750743719765,6.8915,145.02,144.97,6.8932]
[1750743721464,6.8916,145.01,144.97,6.8932]
[1750743722763,3.41939153,145.03,144.96,3.41939153]
[1750743722764,6.8913,145.02,144.98,6.893]
[1750743723069,44.2216,145.04,144.95,3.41939153]
[1750743723360,5.68705812,145.03,144.97,3.41939153]
[1750743723566,6.891,145.03,144.99,6.8921]
[1750743723757,47.64099153,145.04,144.97,3.41939153]
[1750743723963,5.68657302,145.03,144.97,3.41939153]
[1750743724165,47.64099153,145.04,144.97,3.41939153]
[1750743724468,5.68539063,145.03,144.95,3.41939153]
[1750743724666,3.41939153,145.0,144.93,3.41939153]
[1750743724972,3.41939153,144.98,144.91,3.41939153]
[1750743725165,37.34,144.99,144.93,3.41939153]
[1750743725862,37.34,144.99,144.95,6.8941]
[1750743726265,37.34,144.99,144.93,3.41939153]
[1750743726570,37.34,144.99,144.95,3.41939153]
[1750743727162,6.8918,145.01,144.95,3.41939153]
[1750743727579,6.8918,145.01,144.97,6.8932]
[1750743727873,6.8918,145.01,144.95,3.41939153]
[1750743728263,6.8918,145.01,144.98,6.893]
[1750743729365,6.8922,145.0,144.97,6.8935]
[1750743729768,6.8922,145.0,144.96,6.8938]
[1750743730368,37.34,145.02,144.96,6.8938]
[1750743730670,3.41939153,145.01,144.93,3.41939153]
[1750743731373,6.8924,145.0,144.96,6.8939]
[1750743734072,6.8918,145.01,144.97,6.8934]
[1750743734278,37.34,145.02,144.96,3.41939153]
[1750743735167,6.8816,145.04,144.96,3.41939153]
[1750743735369,3.41939153,145.03,144.96,3.41939153]
[1750743735675,3.41939153,145.03,144.95,40.67939153]
[1750743736780,6.8915,145.02,144.98,6.8929]
[1750743737075,3.41939153,145.03,144.98,6.8929]
[1750743737678,6.8916,145.01,144.97,6.8934]
[1750743737978,9.05005597,145.03,144.97,6.8934]
[1750743738373,6.8922,145.0,144.97,6.8934]
[1750743738874,3.41939153,145.03,144.95,3.41939153]
[1750743739075,6.8926,144.99,144.93,3.41939153]
[1750743740184,6.8926,144.99,144.96,6.894]
[1750743740682,37.26,145.0,144.98,6.8929]
[1750743740870,37.26,145.0,144.95,3.41939153]
[1750743741071,37.26,145.0,144.97,3.41939153]
[1750743741272,44.151,145.03,144.99,6.8926]
[1750743741578,10.30099153,145.04,144.97,3.41939153]
[1750743741775,37.26,145.03,145.0,6.8917]
[1750743741968,44.1416,145.04,145.0,6.8917]
[1750743743773,37.26,145.05,144.99,3.41939153]
[1750743744276,37.26,145.05,144.97,3.41939153]
[1750743744577,39.5431,145.05,144.97,3.41939153]
[1750743744981,6.8904,145.04,145.0,6.8918]
[1750743747579,39.5431,145.05,145.03,6.8907]
[1750743747786,37.26,145.05,145.03,6.8907]
[1750743748281,47.56789153,145.08,145.04,6.8902]
[1750743748776,6.8888,145.07,145.02,6.8908]
[1750743749483,6.8893,145.06,145.02,6.8908]
[1750743750687,6.8899,145.05,145.01,6.8913]
[1750743750984,40.67939153,145.08,144.99,3.41939153]
[1750743750985,3.41939153,145.06,144.99,3.41939153]
[1750743752884,6.8903,145.04,144.99,3.41939153]
[1750743753488,6.8903,145.04,145.0,6.8918]
[1750743754082,6.8903,145.04,145.01,6.8916]
[1750743755386,6.8903,145.04,144.99,3.41939153]
[1750743755387,6.8903,145.04,145.0,6.8919]
[1750743755983,40.67939153,145.08,144.99,6.8924]
[1750743756179,3.41939153,145.06,144.99,6.8924]
[1750743756383,5.66475058,145.05,144.99,6.8924]
[1750743756583,37.24,145.04,144.99,6.8924]
[1750743756988,6.8912,145.02,144.98,3.41939153]
[1750743757189,37.24,145.04,144.98,3.41939153]
[1750743757782,6.891,145.03,144.99,6.8925]
[1750743759191,37.24,145.04,145.0,3.41939153]
[1750743759387,37.12,145.08,145.02,3.41939153]
[1750743759697,8.53835229,145.12,144.97,1.1076]
[1750743759698,6.8871,145.11,145.07,6.8883]
[1750743759999,37.12,145.12,145.06,3.41939153]
[1750743760000,5.6624589,145.1,145.06,3.41939153]
[1750743760289,40.53939153,145.12,145.04,3.41939153]
[1750743760489,3.41939153,145.1,145.02,3.41939153]
[1750743760700,5.66336266,145.09,145.02,3.41939153]
[1750743760882,3.41939153,145.1,145.02,3.41939153]
[1750743761082,5.66330779,145.09,145.02,3.41939153]
[1750743761377,8.35365623,145.11,145.02,3.41939153]
[1750743761580,10.5967459,145.1,145.02,3.41939153]
[1750743761785,5.6624812,145.09,145.02,3.41939153]
[1750743761991,6.8883,145.08,145.04,6.8898]
[1750743762886,6.888,145.09,145.05,6.8896]
[1750743763686,3.41939153,145.11,145.04,6.8901]
[1750743763896,3.41939153,145.09,145.02,3.41939153]
[1750743764083,42.79741004,145.08,145.02,3.41939153]
[1750743764284,37.12,145.08,145.02,3.41939153]
[1750743765600,39.4991,145.08,145.0,3.41939153]
[1750743765792,13.70459249,145.07,145.0,3.41939153]
[1750743765984,8.02759153,145.07,145.0,3.41939153]
[1750743766490,5.67693929,145.06,145.0,3.41939153]
[1750743766686,6.89,145.05,145.01,6.8913]
[1750743767780,3.41939153,145.05,144.98,40.53939153]
[1750743767985,37.12,145.04,144.98,40.53939153]
[1750743768288,37.12,145.04,144.96,3.41939153]
[1750743769092,6.891,145.03,144.99,6.8925]
[1750743769595,37.12,145.04,145.0,3.41939153]
[1750743770489,37.12,145.04,145.01,6.8916]
[1750743771090,44.0102,145.04,145.01,6.8916]
[1750743772295,37.12,145.04,145.01,6.8916]
[1750743773701,37.12,145.04,145.0,3.41939153]
[1750743773702,37.12,145.04,145.02,6.8911]
[1750743773995,601.68376421,145.09,145.01,3.41923988]
[1750743774200,27.597,145.16,145.05,6.8897]
[1750743774201,44.0076,145.1,145.05,6.8897]
[1750743774494,5.66262043,145.09,145.03,3.41923988]
[1750743774698,44.0076,145.1,145.05,6.8893]
[1750743774896,5.66259577,145.09,145.03,3.41800973]
[1750743775104,44.0076,145.1,145.03,3.41800973]
[1750743775295,5.66240589,145.09,145.03,3.41800973]
[1750743775489,44.0076,145.1,145.03,3.41800973]
[1750743775699,5.66247513,145.09,145.06,6.8892]
[1750743775896,44.0076,145.1,145.06,6.8892]
[1750743776200,9.0802745,145.09,145.04,6.8898]
[1750743776397,5.66226477,145.08,145.04,6.8898]
[1750743776597,8.34483376,145.09,145.03,6.8905]
[1750743776901,10.59015513,145.08,145.03,6.8905]
[1750743777099,5.66304557,145.07,145.03,6.8905]
[1750743777297,5.66304557,145.06,145.03,6.8905]
[1750743777501,37.12,145.06,145.03,6.8905]
[1750743778001,44.0093,145.06,144.99,3.41800973]
[1750743778192,5.66613439,145.05,144.99,3.41800973]
[1750743778488,44.0093,145.06,144.99,3.41800973]
[1750743778690,5.67943431,145.05,145.01,6.8912]
[1750743778894,44.0093,145.06,145.01,6.8912]
[1750743779204,5.67943431,145.05,145.01,6.8912]
[1750743779502,44.0093,145.06,145.02,6.8911]
[1750743781810,37.12,145.06,144.99,3.41800973]
[1750743781999,15.14425411,145.05,144.99,3.41800973]
[1750743782198,5.6812805,145.04,144.99,3.41800973]
[1750743782396,5.6812805,145.03,144.99,10.31050973]
[1750743782702,7.94010973,145.05,144.98,37.12]
[1750743783004,10.6204516,145.04,144.97,3.41800973]
[1750743783199,14.34387394,145.05,144.97,6.8935]
[1750743783200,6.8915,145.02,144.97,6.8935]
[1750743783396,5.68301536,145.01,144.97,6.8935]
[1750743783605,37.12,145.02,144.97,6.8935]
[1750743783791,5.67534712,145.01,144.97,6.8935]
[1750743783996,44.0113,145.02,144.97,6.8935]
[1750743784196,44.0113,145.02,144.95,3.41800973]
[1750743784197,5.67715475,145.01,144.98,6.893]
[1750743784396,44.0113,145.02,144.95,3.41800973]
[1750743784709,10.61643635,145.01,144.93,3.41800973]
[1750743784896,9.09439918,145.0,144.93,3.41800973]
[1750743785205,9.09439918,145.0,144.92,37.12]
[1750743785206,5.67638945,144.99,144.92,37.12]
[1750743785394,3.41800973,145.0,144.92,37.12]
[1750743785595,6.8931,144.98,144.94,6.8949]
[1750743785992,3.41800973,145.0,144.94,6.8949]
[1750743786192,6.8931,144.98,144.93,6.8951]
[1750743786896,6.8931,144.98,144.92,44.0157]
[1750743786897,40.55800973,144.98,144.92,44.0157]
[1750743787091,40.55800973,144.98,144.9,3.41800973]
[1750743787293,3.41800973,144.96,144.88,37.14]
[1750743787603,3.41800973,144.94,144.89,6.8972]
[1750743788006,6.8955,144.93,144.88,6.8977]
[1750743788605,5.69110973,144.94,144.88,6.8977]
[1750743788802,6.8957,144.93,144.88,6.8977]
[1750743789004,6.8957,144.93,144.89,6.8973]
[1750743789600,5.69110973,144.94,144.86,3.41800973]
[1750743789809,3.41800973,144.92,144.85,37.14]
[1750743790106,37.02,144.91,144.85,37.14]
[1750743790697,37.02,144.91,144.85,40.55800973]
[1750743790896,37.02,144.91,144.85,37.14]
[1750743791295,37.02,144.91,144.88,6.8977]
[1750743791699,37.02,144.91,144.85,37.14]
[1750743792308,37.02,144.91,144.88,6.8974]
[1750743793310,37.02,144.91,144.85,37.14]
[1750743793803,43.9164,144.91,144.87,6.8979]
[1750743794600,37.02,144.91,144.88,6.8978]
[1750743796309,43.9165,144.91,144.86,6.8983]
[1750743796508,43.9165,144.91,144.84,112.81006796]
[1750743796808,37.02,144.91,144.86,3.41800973]
[1750743797510,37.02,144.91,144.89,6.897]
[1750743798909,37.04,144.98,144.89,3.41800973]
[1750743799110,37.04,144.98,144.92,3.41800973]
[1750743799811,37.04,144.98,144.95,6.8942]
[1750743800915,37.04,144.98,144.96,6.8939]
[1750743802307,43.9326,144.99,144.96,6.8939]
[1750743802811,37.04,144.99,144.97,6.8933]
[1750743803008,37.04,144.99,144.94,3.41800973]
[1750743804515,37.04,144.99,144.96,6.8937]
[1750743806513,37.04,144.99,144.91,37.04]
[1750743806715,40.45800973,144.99,144.92,3.41800973]
[1750743807516,40.45800973,144.99,144.95,6.8944]
[1750743807517,6.8931,144.98,144.95,6.8944]
[1750743807712,40.45800973,144.99,144.9,3.41800973]
[1750743808717,6.8939,144.97,144.93,6.8951]
[1750743810817,6.8942,144.96,144.92,6.8958]
[1750743811021,37.04,144.95,144.89,37.04]
[1750743811319,37.04,144.95,144.88,3.41800973]
[1750743811921,43.9348,144.95,144.91,6.8963]
[1750743812722,6.8949,144.94,144.9,6.8967]
[1750743812921,37.04,144.95,144.88,3.41800973]
[1750743813118,37.04,144.95,144.93,6.8951]
[1750743813625,37.04,144.95,144.9,3.41800973]
[1750743813820,37.04,144.95,144.88,3.41800973]
[1750743814813,2.4115,144.94,144.88,3.41800973]
[1750743815013,6.8957,144.93,144.89,6.897]
[1750743815413,6.8957,144.93,144.88,3.41800973]
[1750743816225,11.5137,144.94,144.9,6.8965]
[1750743816430,11.5137,144.94,144.88,3.41800973]
[1750743816911,11.5137,144.94,144.9,6.8966]
[1750743817116,6.8955,144.93,144.9,6.8966]
[1750743817424,4.6184,144.94,144.88,3.41800973]
[1750743817624,37.04,144.95,144.9,3.41800973]
[1750743817928,37.04,144.95,144.93,6.8953]
[1750743821326,37.04,144.95,144.94,6.8949]
[1750743821730,36.9,144.98,144.92,3.41800973]
[1750743822331,39.3119,145.0,144.96,3.41800973]
[1750743822933,46.2043,145.0,144.97,6.8935]
[1750743823139,39.3119,145.0,144.97,6.8935]
[1750743823833,4.5963,145.04,144.98,3.41800973]
[1750743824033,4.5963,145.04,144.96,3.41800973]
[1750743824334,4.5963,145.04,145.02,6.8911]
[1750743824535,4.5963,145.04,144.98,40.31800973]
[1750743825231,11.4867,145.04,145.0,6.8918]
[1750743826029,4.5963,145.04,144.98,40.31800973]
[1750743826231,36.9,145.05,145.0,3.41800973]
[1750743827036,36.9,145.05,145.0,10.30980973]
[1750743827236,36.9,145.05,145.0,6.8918]
[1750743827731,6.8904,145.04,145.0,6.8918]
[1750743830933,6.8907,145.03,144.99,6.8925]
[1750743831731,6.8912,145.02,144.98,43.7929]
[1750743831929,6.8912,145.02,144.98,6.8929]
[1750743832635,6.8916,145.01,144.97,6.8933]
[1750743833439,6.8912,145.02,144.98,6.893]
[1750743835929,6.8916,145.01,144.98,6.893]
[1750743836838,6.8913,145.02,144.98,6.893]
[1750743839138,6.8917,145.01,144.97,6.8934]
[1750743839636,6.8921,145.0,144.97,6.8934]
[1750743840040,6.8921,145.0,144.96,6.8938]
[1750743840735,43.7918,145.01,144.97,6.8935]
[1750743841342,43.7917,145.01,144.94,3.41800973]
[1750743841935,43.7917,145.01,144.97,6.8932]
[1750743843745,6.8923,145.0,144.97,6.8932]
[1750743844646,43.7918,145.01,144.97,6.8932]
[1750743846440,36.9,145.01,144.96,3.41800973]
[1750743846646,2.3354,145.03,145.0,3.41800973]
[1750743846845,2.3867,145.05,145.0,3.41800973]
[1750743847645,2.3867,145.05,145.01,6.8914]
[1750743847842,2.3867,145.05,144.98,3.41800973]
[1750743848142,9.04948648,145.04,144.98,3.41800973]
[1750743848337,6.8907,145.03,144.99,6.8923]
[1750743849648,6.8912,145.02,144.98,6.8929]
[1750743850143,43.6512,145.02,144.98,6.8929]
[1750743850343,36.76,145.02,144.96,40.31800973]
[1750743850945,43.6514,145.02,144.98,6.8928]
[1750743851749,6.8916,145.01,144.98,6.8928]
[1750743852146,36.76,145.02,144.98,6.8928]
[1750743852350,43.6514,145.02,144.98,6.8928]
[1750743853042,6.8917,145.01,144.98,6.8928]
[1750743853749,6.8922,145.0,144.97,6.8934]
[1750743854246,6.8923,145.0,144.94,3.41800973]
[1750743854450,4.4325,145.01,144.94,3.41800973]
[1750743854749,6.8922,145.0,144.96,6.8937]
[1750743855662,2.1879,145.01,144.94,3.41800973]
[1750743856554,9.0798,145.01,144.98,6.8929]
[1750743857051,2.1879,145.01,144.98,6.8929]
[1750743861252,9.0796,145.01,144.97,6.8934]
[1750743861457,5.60985782,145.01,144.93,40.20195782]
[1750743861649,3.42195782,144.99,144.92,3.42195782]
[1750743861847,6.8936,144.97,144.93,6.895]
[1750743862050,36.76,144.98,144.91,3.42195782]
[1750743862251,39.101,144.98,144.91,3.42195782]
[1750743862556,6.8943,144.96,144.92,6.8956]
[1750743863555,6.8945,144.95,144.92,6.8956]
[1750743863757,3.42195782,144.97,144.89,40.18195782]
[1750743863952,3.42195782,144.95,144.89,3.42195782]
[1750743864154,36.76,144.94,144.9,6.8965]
[1750743864456,36.76,144.94,144.89,3.42195782]
[1750743864856,36.76,144.94,144.88,3.42195782]
[1750743866754,6.8954,144.93,144.9,6.8968]
[1750743867354,6.8954,144.93,144.89,6.8971]
[1750743867547,6.8959,144.92,144.89,6.8971]
[1750743868152,6.8956,144.93,144.89,6.8971]
[1750743871249,43.6551,144.94,144.9,6.8967]
[1750743872747,2.199,144.95,144.9,3.42195782]
[1750743872953,36.78,144.97,144.9,3.42195782]
[1750743873260,43.6738,144.97,144.93,6.8954]
[1750743874055,6.894,144.96,144.93,6.8954]
[1750743874367,6.894,144.96,144.92,6.8956]
[1750743875265,6.894,144.96,144.91,6.8962]
[1750743876559,6.894,144.96,144.92,6.8958]
[1750743877262,43.6737,144.97,144.93,6.8953]
[1750743877659,2.297,145.0,144.94,3.42195782]
[1750743877866,38.9991,145.03,144.98,3.42195782]
[1750743878182,12.49925247,145.02,144.99,6.8926]
[1750743878364,38.9991,145.03,144.99,6.8926]
[1750743878564,5.60768497,145.02,144.99,6.8926]
[1750743878865,38.9991,145.03,144.99,6.8926]
[1750743879162,9.02969719,145.02,144.94,3.42195782]
[1750743879370,3.42195782,145.02,144.94,3.42195782]
[1750743879557,6.8924,145.0,144.96,6.894]
[1750743881463,6.8927,144.99,144.95,6.8943]
[1750743881762,43.5327,144.99,144.95,6.8943]
[1750743882271,43.5327,144.99,144.96,6.8939]
[1750743882471,36.64,144.99,144.93,36.64]
[1750743882966,36.64,144.99,144.96,6.8937]
[1750743883266,2.2191,145.03,144.96,3.42195782]
[1750743883267,36.64,145.02,144.96,3.42195782]
[1750743883465,36.64,145.02,144.95,3.42195782]
[1750743883665,36.64,145.02,144.97,3.42195782]
[1750743884065,2.387,145.04,144.97,40.06195782]
[1750743884267,2.387,145.04,144.99,3.42195782]
[1750743884774,2.387,145.04,145.01,6.8913]
[1750743885683,9.2773,145.04,145.0,6.8919]
[1750743885872,2.387,145.04,145.0,6.8919]
[1750743886276,9.2774,145.04,145.0,6.8919]
[1750743886478,2.387,145.04,145.0,6.8919]
[1750743887474,2.387,145.04,144.99,6.8926]
[1750743888276,9.2774,145.04,144.99,6.8926]
[1750743888972,6.8904,145.04,145.0,6.892]
[1750743890374,6.8907,145.03,144.99,6.8924]
[1750743891476,12.53550993,145.04,145.0,6.892]
[1750743891671,6.8903,145.04,145.0,6.892]
[1750743893082,6.8907,145.03,144.99,6.8924]
[1750743893580,40.06195782,145.05,144.97,40.06195782]
[1750743893773,5.70625782,145.03,144.94,36.64]
[1750743893974,7.88171703,145.02,144.94,40.06195782]
[1750743894282,36.64,145.01,144.94,40.06195782]
[1750743894485,6.8921,145.0,144.96,6.8937]
[1750743896581,2.2843,145.03,144.96,3.42195782]
[1750743896781,2.2843,145.03,144.98,3.42195782]
[1750743897082,6.8914,145.02,144.98,10.31475782]
[1750743898283,36.64,145.04,144.98,3.42195782]
[1750743898877,36.64,145.04,145.0,6.8917]
[1750743899077,36.64,145.04,144.98,3.42195782]
[1750743899078,2.2226,145.08,145.02,3.42195782]
[1750743899271,5.63213932,145.07,145.02,3.42195782]
[1750743899477,45.751,145.08,145.04,6.8899]
[1750743899877,6.8888,145.07,145.03,6.8904]
[1750743900478,6.8888,145.07,145.02,3.42195782]
[1750743900479,6.8893,145.06,145.02,6.891]
[1750743903295,3.42195782,145.05,144.98,3.42195782]
[1750743903489,3.42195782,145.05,144.96,36.62]
[1750743903690,6.8914,145.02,144.98,6.8927]
[1750743903881,36.62,145.03,144.98,3.42195782]
[1750743904287,36.62,145.03,145.0,6.8919]
[1750743904488,36.62,145.03,144.98,3.42195782]
[1750743905186,36.62,145.06,144.98,3.42195782]
[1750743905498,6.8902,145.04,145.01,6.8916]
[1750743905998,6.8899,145.05,145.01,6.8916]
[1750743907788,9.06497884,145.05,144.98,3.42195782]
[1750743908095,3.42195782,145.05,144.98,3.42195782]
[1750743908699,6.891,145.03,144.99,6.8922]
[1750743909393,6.8915,145.02,144.98,6.8929]
[1750743909593,6.8915,145.02,144.96,40.04195782]
[1750743909594,36.5,145.02,144.96,40.04195782]
[1750743909800,36.5,145.02,144.96,3.42195782]
[1750743910194,36.5,145.02,144.97,6.8931]
[1750743910394,2.1803,145.01,144.94,3.42195782]
[1750743910690,9.0723,145.01,144.96,6.8937]
[1750743911004,5.60225782,145.01,144.96,6.8937]
[1750743911197,5.60225782,145.01,144.94,3.42195782]
[1750743911198,2.1803,145.01,144.94,3.42195782]
[1750743911902,2.1803,145.01,144.98,6.8928]
[1750743912303,2.1803,145.01,144.94,3.42195782]
[1750743912506,9.0722,145.01,144.97,6.8932]
[1750743912799,2.1803,145.01,144.96,3.42195782]
[1750743913705,2.1803,145.01,144.99,6.8923]
[1750743914396,36.5,145.02,144.98,3.42195782]
[1750743914909,36.5,145.02,145.01,6.8916]
[1750743920717,36.5,145.02,145.0,6.892]
[1750743920916,36.5,145.02,144.96,3.42195782]
[1750743921114,5.65536238,145.01,144.96,3.42195782]
[1750743921315,5.65773774,145.0,144.97,6.8934]
[1750743921516,6.892,145.01,144.97,6.8934]
[1750743921819,5.6577415,145.0,144.97,6.8934]
[1750743922015,6.892,145.01,144.97,6.8934]
[1750743922211,12.54988142,145.0,144.97,6.8934]
[1750743922516,3.42195782,145.0,144.92,3.42195782]
[1750743922721,5.65666028,144.99,144.92,3.42195782]
[1750743922915,5.65666028,144.98,144.92,3.42195782]
[1750743923216,43.3929,144.99,144.95,6.8941]
[1750743923415,5.65572762,144.98,144.95,6.8941]
[1750743923612,43.3929,144.99,144.95,6.8941]
[1750743923811,12.54888862,144.98,144.94,6.8948]
[1750743924018,6.8931,144.98,144.93,3.42195782]
[1750743924220,43.3927,144.99,144.93,3.42195782]
[1750743924518,5.6546263,144.98,144.95,6.8945]
[1750743924720,43.3927,144.99,144.95,6.8945]
[1750743924920,12.54775815,144.98,144.95,6.8945]
[1750743925116,6.8931,144.98,144.95,6.8945]
[1750743925918,5.65396113,144.97,144.94,6.8948]
[1750743926221,6.8931,144.98,144.94,6.8948]
[1750743926427,5.65301031,144.97,144.94,6.8948]
[1750743926615,6.8931,144.98,144.94,6.8948]
[1750743926918,43.3929,144.99,144.95,6.8941]
[1750743928519,6.8931,144.98,144.95,6.8941]
[1750743929423,6.8931,144.98,144.94,6.8948]
[1750743929823,6.8931,144.98,144.92,3.42195782]
[1750743930123,6.8931,144.98,144.94,6.8945]
[1750743930820,6.8931,144.98,144.95,6.8944]
[1750743933325,36.5,144.99,144.89,5.7433]
[1750743933530,3.42195782,144.96,144.85,5.5868]
[1750743933825,42.1310571,144.95,144.88,3.42195782]
[1750743934021,6.8954,144.93,144.9,6.8966]
[1750743934525,6.8954,144.93,144.89,6.8971]
[1750743936426,6.8961,144.92,144.89,6.8971]
[1750743939033,38.689,144.95,144.89,3.42195782]
[1750743939331,36.5,144.95,144.89,3.42195782]
[1750743939628,38.5952,144.98,144.93,3.42195782]
[1750743939824,2.3758,145.0,144.95,3.42195782]
[1750743940030,6.8922,145.0,144.96,3.42195782]
[1750743940240,36.4,145.01,144.94,3.42195782]
[1750743940424,5.61777875,145.0,144.93,39.82195782]
[1750743940625,6.8936,144.97,144.94,6.8948]
[1750743940830,39.82195782,145.01,144.94,6.8948]
[1750743941135,6.8935,144.98,144.94,6.8948]
[1750743942036,6.8935,144.98,144.93,3.42195782]
[1750743942331,6.8936,144.97,144.93,3.42195782]
[1750743943132,3.42195782,144.99,144.91,10.31815782]
[1750743943434,3.42195782,144.95,144.86,38.6724]
[1750743943629,36.4,144.94,144.87,3.42195782]
[1750743944027,6.8963,144.92,144.88,6.8974]
[1750743945735,6.8963,144.92,144.89,6.8973]
[1750743945937,6.8956,144.93,144.89,6.8973]
[1750743946135,36.4,144.94,144.89,6.8973]
[1750743946529,36.4,144.94,144.88,10.31965782]
[1750743946838,6.8959,144.92,144.88,10.31965782]
[1750743947037,36.4,144.94,144.88,10.31965782]
[1750743947236,6.8961,144.92,144.88,10.31965782]
[1750743949127,36.4,144.94,144.86,36.4]
[1750743949441,36.4,144.94,144.87,3.42195782]